Cogmind - Beta 16 @@@ ROGUE MODE // 2025.12.13 @ 21:29:11 Player: AnotherZach Result: Destroyed by G-67 Veteran with Field Laser Performance ------------- Evolutions (7) 3500 Regions Visited (19) 3800 Robots Destroyed (269) 1345 Value Destroyed (9821) 9821 Prototype IDs (41) 820 Alien Tech Used (2) 400 Bonus (-3094) -3094 TOTAL SCORE: 16592 Bonus ------- High Alert Combat Kills 1090 Follower Combat Kills 175 Entered Garrisons 200 Acquired ECA 300 Met Zhirov 300 Friendly Fire -5159 Cogmind --------- Core Integrity 0/1300 Matter 81/300 Energy 166/166 System Corruption 42% Temperature Cool (12) Movement Walking (131) Location -3/Research Parts ------- > --- POWER (3) -------- Antimatter-Fission Reactor > --- PROPULSION (6) --- Enhanced Flexi-carbon Leg Enhanced Armored Leg Advanced Myomer Leg Advanced Myomer Leg Myomer Exoskeleton > --- UTILITY (8) ------ Scrap Engine Advanced Sensor Array Advanced Sensor Array Advanced Signal Interpreter Advanced Target Analyzer Advanced Target Analyzer > --- WEAPON (4) ------- Hardcell Cannon Heavy Shock Bomb Launcher Charged Proton Construct/C > --- INVENTORY (5) ---- Advanced Coolant Injector Large Storage Unit Matter Compressor (109) Advanced Signal Interpreter Advanced Hacking Suite Peak State ------------ > --- POWER ------------ Micro Fission Core Antimatter-Fission Reactor > --- PROPULSION ------- Myomer Exoskeleton > --- UTILITY ---------- Armored Scrap Engine Coolant Network Huge Storage Unit Enhanced Optical Array Advanced Signal Interpreter Advanced Targeting Computer > --- WEAPON ----------- Light Antimatter Cannon Rapid Ballistic Penetrator Construct/G Thermal Construct/G Charged Proton Construct/C > --- INVENTORY -------- Fusion Reactor Enhanced Flexi-carbon Leg Enhanced Flexi-carbon Leg Enhanced Flexi-carbon Leg Advanced Myomer Leg Advanced Myomer Leg Advanced Myomer Leg Advanced Cooling System Large Storage Unit High-capacity Storage Unit Matter Compressor Advanced Sensor Array Advanced Sensor Array Advanced Signal Interpreter Terrain Scan Processor Advanced Target Analyzer Advanced Hacking Suite Advanced Trap Extractor Transdimensional Reconstructor Precision Phase Gun Long-range Proton Cannon Nova Cannon Heavy Proton Missile Launcher Precision Grenade Launcher [Rating: 142] Favorites ----------- Power Constructs Engine Ion Engine Power Core Enhanced Fission Core Reactor Constructs Propulsion Light Treads Treads Light Treads Leg Constructs Wheel Wheel Hover Unit Gravmag Array Flight Unit Improved VTOL Module Utility High-capacity Storage Unit Device Armored Scrap Engine Storage High-capacity Storage Unit Processor Advanced Targeting Computer Hackware Hacking Suite Protection Light Armor Plating Weapon Constructs Energy Gun Constructs Energy Cannon Nova Cannon Ballistic Gun Subdweller Machine Gun Ballistic Cannon Constructs Launcher Precision Grenade Launcher Impact Weapon Impact Mace Slashing Weapon Katana Special Melee Weapon Improved Datajack Build | -11 -10 -10 -8 -7 -7 -7 -5 -5 -5 -5 -5 -5 -5 -4 -4 -4 -4 -3 -3 ------- Run | Yrd Mat Sub Mat Fac Sto Rec Fac Was Fac Gar Fac Upp Upp Fac Upp Upp Zhi Pro Res Slots Evolved 14 | . . . 4 2 . . 4 . . . . . . 2 . . . . 2 Power 2 | . . . . . . . 1 . . . . . . 1 . . . . . Propulsion 4 | . . . 1 2 . . 1 . . . . . . . . . . . . Utility 6 | . . . 2 . . . 2 . . . . . . . . . . . 2 Weapon 2 | . . . 1 . . . . . . . . . . 1 . . . . . Parts Attached 172 | 7 12 10 28 10 7 13 14 5 8 9 8 1 . 2 2 2 3 . 31 Power 13 | 1 2 1 2 1 1 1 2 . . . . . . . . . 1 . 1 Engine 8 | 1 2 1 2 1 . 1 . . . . . . . . . . . . . Core 3 | . . . . . 1 . 2 . . . . . . . . . . . . Reactor 2 | . . . . . . . . . . . . . . . . . 1 . 1 Propulsion 48 | 2 5 2 8 6 . 9 4 3 . 2 . . . . . . . . 7 Treads 13 | . 2 2 4 . . 5 . . . . . . . . . . . . . Leg 15 | . 2 . . . . 2 1 2 . 1 . . . . . . . . 7 Wheel 9 | 2 1 . 3 . . 2 1 . . . . . . . . . . . . Hover 3 | . . . . . . . 2 1 . . . . . . . . . . . Flight 8 | . . . 1 6 . . . . . 1 . . . . . . . . . Utility 64 | 2 3 2 9 1 . 2 5 2 7 5 3 . . 2 1 1 2 . 17 Device 29 | 1 1 . 2 . . 1 2 2 3 3 2 . . 1 1 1 1 . 8 Storage 9 | 1 2 . . 1 . . . . 1 . 1 . . . . . 1 . 2 Processor 12 | . . 1 . . . . 3 . 1 1 . . . 1 . . . . 5 Hackware 4 | . . . 2 . . . . . . . . . . . . . . . 2 Protection 10 | . . 1 5 . . 1 . . 2 1 . . . . . . . . . Artifact . | . . . . . . . . . . . . . . . . . . . . Weapon 47 | 2 2 5 9 2 6 1 3 . 1 2 5 1 . . 1 1 . . 6 Energy Gun 11 | 2 1 . 3 . 1 1 1 . . . 1 . . . . . . . 1 Energy Cannon 4 | . . . . . . . 1 . . . . 1 . . 1 . . . 1 Ballistic Gun 15 | . . 2 5 . 2 . 1 . . 2 2 . . . . . . . 1 Ballistic Cannon 7 | . 1 2 1 . . . . . 1 . . . . . . 1 . . 1 Launcher 7 | . . 1 . . 2 . . . . . 2 . . . . . . . 2 Special Weapon . | . . . . . . . . . . . . . . . . . . . . Impact Weapon 1 | . . . . . 1 . . . . . . . . . . . . . . Slashing Weapon 1 | . . . . 1 . . . . . . . . . . . . . . . Piercing Weapon . | . . . . . . . . . . . . . . . . . . . . Special Melee Weapon 1 | . . . . 1 . . . . . . . . . . . . . . . Unidentified Prototypes 25 | . . . 2 1 6 1 3 1 1 . 1 . . . . 1 4 . 4 Corrupted Parts 1 | . . . . . . . . . . . . . . . . . . . 1 System Corruption 8 | . . . . . . . . . . . . . . . . . . . 8 Parts Lost 58 | . 1 4 1 . . 5 . . 5 4 2 1 . . . . . . 35 Power 11 | . 1 1 . . . 1 . . 1 . 1 1 . . . . . . 5 Propulsion 13 | . . 1 . . . 2 . . . 1 . . . . . . . . 9 Utility 18 | . . 1 1 . . 1 . . 4 1 . . . . . . . . 10 Weapon 16 | . . 1 . . . 1 . . . 2 1 . . . . . . . 11 Highest Loss Streak 12 | . 1 3 1 . . 5 . . 1 2 1 1 . . . . . . 12 To Critical Strikes 6 | . . . . . . . . . 1 1 . . . . . . . . 4 Average Backups 16 | 3 13 15 18 11 9 18 16 16 19 18 18 14 14 15 20 20 19 20 16 Power 1 | . . . 1 . . . 1 1 1 2 2 1 1 . 1 1 1 1 . Propulsion 4 | 2 5 3 3 3 2 7 4 4 1 2 2 2 2 2 6 5 5 6 4 Utility 6 | . 4 7 8 6 4 4 5 5 7 6 6 5 5 6 7 8 7 8 8 Weapon 4 | . 2 3 3 1 3 4 4 4 7 6 6 6 6 5 5 5 4 4 2 Tool/Special . | . . . . . . . . . . . . . . . . . . . . Unused Backups 81 | . 2 6 11 8 8 10 7 6 5 . 6 . . 2 1 2 3 . 4 Power 4 | . . 1 1 . . 1 1 . . . . . . . . . . . . Propulsion 31 | . 2 1 4 3 1 7 2 6 . . 1 . . . 1 . 3 . . Utility 32 | . . 3 5 4 4 2 3 . 2 . 2 . . 1 . 2 . . 4 Weapon 11 | . . 1 . . 3 . 1 . 3 . 2 . . 1 . . . . . Tool/Special 3 | . . . 1 1 . . . . . . 1 . . . . . . . . Average Slot Usage (%) 78 | . 99 100 95 90 97 84 73 63 56 57 59 63 54 55 63 63 65 68 65 Engine 5 | . 14 14 9 7 5 6 1 . . . . . . . . . . . . Core 2 | . . . . . 1 . 5 5 5 5 5 10 5 8 10 10 10 10 2 Treads 11 | . 12 28 23 . . 20 . . . . . . . . 5 5 5 5 . Leg 3 | . 10 . . . . 3 . 2 . 1 8 . . . . . . . 13 Wheel 1 | . 4 . 3 2 . 3 12 . . . . . . . . . . . . Flight 1 | . . . . 32 38 2 . 1 3 . . 4 5 4 . . . . . Device 10 | . 14 2 3 . . 10 14 17 15 16 16 17 17 10 10 10 9 10 12 Storage 7 | . 14 14 9 7 7 7 5 5 5 5 5 5 5 5 5 5 5 5 3 Processor 4 | . . 5 2 . . . 7 5 2 . 5 5 5 9 10 10 10 10 11 Hackware 1 | . . . 7 15 15 3 . . . . . . . . . . . . . Protection 2 | . . 6 10 7 7 3 . . 2 4 . . . . . . . . . Energy Gun 6 | . 14 6 5 . . 8 2 5 11 5 2 . . 6 10 10 10 10 5 Ballistic Gun 5 | . . 6 16 2 5 2 12 3 1 9 11 5 5 5 5 8 10 6 2 Ballistic Cannon 4 | . 13 14 5 . . . . 3 3 . . . . . . 1 . . 3 Slashing Weapon 1 | . . . . 5 7 5 1 . . . . . . . . . . . . Peak Build Rating 142 | 9 11 12 34 39 45 57 95 108 111 113 100 100 92 104 102 102 108 109 142 Average Rating 63 | 5 10 10 24 36 42 49 79 95 104 100 83 96 88 97 100 97 100 108 122 On Entrance 69 | . 9 11 12 28 38 41 56 95 108 111 85 100 92 86 102 99 96 105 109 Avg Prop Armor Cover (%) 7 | . . . 11 7 . 7 . 1 . . . . . . . . . . 5 Naked Turns . | . . . . . . . . . . . . . . . . . . . . Heaviest Build 132 | 15 51 55 79 63 27 83 74 83 90 96 74 66 55 83 89 89 95 101 132 Greatest Support 150 | 26 40 40 60 25 25 106 80 141 105 105 78 76 76 135 135 135 135 135 150 Greatest Overweight (x) 8 | . 3 1 7 3 1 8 . 1 . 2 1 . . . . . . . 1 Average Overweight (x) . | . . 1 2 . . . . . . . . . . . . . . . . Largest Inventory Capacity 25 | 8 20 20 20 20 10 20 20 20 20 20 20 15 15 20 20 20 20 20 25 Average Capacity 19 | 7 17 20 20 11 10 19 20 20 20 20 19 15 15 15 20 20 20 20 21 Most Carried 25 | 6 17 20 20 20 10 20 20 20 20 20 20 14 14 20 20 20 20 20 25 Average Carried 17 | 3 14 18 19 10 9 18 18 16 19 18 18 14 14 15 19 19 19 20 16 Final Capacity 20 | 8 20 20 20 10 10 20 20 20 20 20 15 15 15 20 20 20 20 20 5 Final Carried 20 | 6 17 20 20 10 10 16 19 19 19 18 14 14 14 20 20 20 20 20 5 Scrap Engine Consumption 251 | . . . . . . 49 21 60 16 40 16 5 1 7 2 9 1 2 22 Constructs Created 17 | . . . . . . 2 2 1 1 1 1 . . 3 . . . . 6 Constructs Modified 84 | . . . . . . 10 2 33 4 17 1 1 . 1 1 . . . 14 Class Distribution -------------------- 36% | Construct 27% | Mutant 11% | Commander-Mutant 6% | Scavenger-Tank 4% | Gunner 4% | Commander-Construct Dominant Class ---------------- Mutant | -10/Materials Mutant | -10/Subcaves Scavenger-Tank | -8/Materials Hacker-Sprinter | -7/Factory Hacker-Sprinter | -7/Storage Commander-Mutant | -7/Recycling Scavenger-Construct | -5/Factory Construct | -5/Waste Construct | -5/Factory Construct | -5/Garrison Construct | -5/Factory Construct | -5/Upper Caves Construct | -5/Upper Caves Construct | -4/Factory Construct | -4/Upper Caves Construct | -4/Upper Caves Construct | -4/Zhirov Construct | -3/Proximity Caves Construct | -3/Research Resources | -11 -10 -10 -8 -7 -7 -7 -5 -5 -5 -5 -5 -5 -5 -4 -4 -4 -4 -3 -3 ----------- Run | Yrd Mat Sub Mat Fac Sto Rec Fac Was Fac Gar Fac Upp Upp Fac Upp Upp Zhi Pro Res Matter Collected 7654 | 257 168 392 899 252 108 359 436 200 319 641 357 169 . 87 196 320 . 224 2270 Remotely . | . . . . . . . . . . . . . . . . . . . . Salvage Created 13855 | 152 367 255 1292 254 . 1205 745 2571 911 1150 502 219 . 138 233 536 . 398 2927 Parts 553 | 11 28 13 79 11 . 53 28 52 41 54 24 5 . 4 3 20 . 8 119 Haulers Intercepted 9 | . 2 . 3 1 . . 1 . . . 1 . . . . . . . 1 Recyclers Shooed 13 | . . . 2 . . . 1 . 3 . 2 . . . . . . . 5 Parts Field Recycled . | . . . . . . . . . . . . . . . . . . . . Retrieved Matter . | . . . . . . . . . . . . . . . . . . . . Parts Self-Destructed 12 | . . . . . . . . . . . . . . . 1 8 . 3 . Prevented 13 | . . . . . . . . . . . . 3 . . . 5 . 5 . Parts Restored . | . . . . . . . . . . . . . . . . . . . . Kills | -11 -10 -10 -8 -7 -7 -7 -5 -5 -5 -5 -5 -5 -5 -4 -4 -4 -4 -3 -3 ------- Run | Yrd Mat Sub Mat Fac Sto Rec Fac Was Fac Gar Fac Upp Upp Fac Upp Upp Zhi Pro Res Combat Hostiles Destroyed 170 | . 8 9 28 . . 11 14 . 15 26 3 3 . . 1 6 . 5 41 Melee 2 | . . . . . . 2 . . . . . . . . . . . . . Guns 102 | . 3 2 24 . . 9 14 . 6 24 3 1 . . 1 2 . 1 12 Cannons 30 | . 4 6 3 . . . . . 4 1 . . . . . 1 . . 11 AOE 24 | . 1 1 1 . . . . . 4 . . . . . . 1 . 2 14 Classes Destroyed 21 | 2 6 1 3 . . 3 2 1 1 . . . . . . 2 . . . Worker 15 | . 1 . 5 2 . . 1 . 1 . 1 . . . . . . . 4 Builder 17 | . . . 2 1 . 2 1 . 3 . . . . . . . . . 8 Tunneler 5 | 4 1 . . . . . . . . . . . . . . . . . . Hauler 9 | . 2 . 3 1 . . 1 . . . 1 . . . . . . . 1 Recycler 16 | 1 . . 3 1 . 3 . . 1 . 1 . . 1 . . . . 5 Minesweeper 1 | . . . . . . . . . . . . . . . . 1 . . . Mechanic 1 | . . . . . . . 1 . . . . . . . . . . . . Operator 2 | . 1 . 1 . . . . . . . . . . . . . . . . Watcher 7 | . 1 . 2 1 . . 1 . 1 . 1 . . . . . . . . Swarmer 44 | . 3 . 14 . . 1 4 . . 13 . . . . . . . 1 8 Grunt 54 | . 5 . 8 . . 3 6 . 7 10 . 2 . . . 3 . 3 7 Brawler 5 | . . . . . . 1 . . 1 2 . 1 . . . . . . . Duelist 4 | . . . 1 . . 1 1 . 1 . . . . . . . . . . Protector 2 | . . . . . . . 1 . 1 . . . . . . . . . . Sentry 22 | . . . 5 . . 4 1 . 2 1 2 . . . 1 1 . 1 4 Hunter 13 | . . . . . . 1 . . 1 . . . . . . . . . 11 Programmer 20 | . . . . . . 4 2 . 2 . 1 . . . . . . . 11 Behemoth 2 | . . . . . . . . . 1 . . . . . . 1 . . . Subdweller 10 | . . 9 . . . 1 . . . . . . . . . . . . . Packrat 2 | . . . . . . . . . . . . . . . 2 . . . . Wasp 4 | . . . . . . . . 4 . . . . . . . . . . . Thug 14 | . . . . . . . . 14 . . . . . . . . . . . Martyr 1 | . . . . . . . . 1 . . . . . . . . . . . Mutant 1 | . . . . . . . . . . . . . . . . 1 . . . Best Kill Streak 19 | 3 4 1 7 3 . 6 5 . 6 7 3 3 . 1 1 3 . 4 19 Combat Bots Only 8 | . 4 1 7 . . 6 5 . 4 7 2 3 . . 1 3 . 4 8 Max Kills in Single Turn 6 | 1 1 1 3 1 . 1 2 3 6 2 1 2 . 1 1 1 . 1 5 Gunslinging 2 | . . . 2 . . . . . . 1 . . . . . . . . . Exploded 4 | . 1 1 1 . . . . . 4 . . . . . . 1 . 1 2 Melee 1 | . . . . . . 1 . . . . . . . . . . . . . Uniques/NPCs Destroyed . | . . . . . . . . . . . . . . . . . . . . Combat | -11 -10 -10 -8 -7 -7 -7 -5 -5 -5 -5 -5 -5 -5 -4 -4 -4 -4 -3 -3 -------- Run | Yrd Mat Sub Mat Fac Sto Rec Fac Was Fac Gar Fac Upp Upp Fac Upp Upp Zhi Pro Res Hostile Shots Fired 1914 | . 38 55 149 11 53 188 48 . 193 235 35 37 . . 8 17 . 30 817 Missed 717 | . 10 18 40 10 37 56 19 . 87 77 8 14 . . 3 6 . 16 316 Hits 1197 | . 28 37 109 1 16 132 29 . 106 158 27 23 . . 5 11 . 14 501 Melee 4 | . . . 1 . . . 1 . . . . . . . . . . . 2 Projectile 1193 | . 28 37 108 1 16 132 28 . 106 158 27 23 . . 5 11 . 14 499 AOE 1 | . . . . . . . . . 1 . . . . . . . . . . Critical Strikes 46 | . 2 1 1 . . 3 2 . 4 4 2 1 . . . 2 . . 24 Damage Taken 20537 | . 336 851 1486 10 120 1176 292 32 2057 2152 860 470 . . 105 316 . 356 9918 Core 2288 | . 37 126 155 10 17 110 19 . 191 78 223 47 . . . . . . 1275 Absorbed by Shields 903 | . . . . . . 51 282 . 85 452 12 . . . . . . . 21 Redirected to Shielding 24 | . . . . . . . . . . 24 . . . . . . . . . Ignored by Resistances 641 | . . . 48 . . 71 . . 28 . . . . . . . . . 494 Regen/Repaired (Parts) 3994 | . 86 . 103 . . 10 96 196 708 1297 38 . . 292 . . . 86 1082 Core Remaining (%) 71 | 100 . 34 71 . . 80 . . . . . . 44 . . . . 100 . Volleys Fired 736 | 14 41 41 78 . 1 17 37 111 52 74 32 6 . 4 8 26 . 16 178 Largest 4 | 2 2 2 3 . 2 3 3 3 3 3 3 3 . 3 4 4 . 4 4 Hottest 288 | 80 80 83 154 . 53 155 166 154 153 190 127 199 . 111 192 162 . 151 288 Shots Fired 1769 | 28 76 80 218 . 2 39 109 145 152 213 84 18 . 9 31 68 . 31 466 Gun 1360 | 28 37 37 175 . 2 39 109 145 112 205 83 6 . 9 24 58 . 19 272 Cannon 357 | . 39 41 40 . . . . . 40 8 . 9 . . 2 6 . . 172 Launcher 52 | . . 2 3 . . . . . . . 1 3 . . 5 4 . 12 22 Special . | . . . . . . . . . . . . . . . . . . . . Kinetic 917 | . 39 60 165 . 2 18 95 57 40 55 72 6 . 4 8 36 . 9 251 Thermal 591 | . 11 18 50 . . 21 14 . 100 128 11 9 . 5 16 28 . 10 170 Explosive 30 | . . 2 3 . . . . . . . 1 . . . 5 . . 3 16 Electromagnetic 231 | 28 26 . . . . . . 88 12 30 . 3 . . 2 4 . 9 29 Robot Hit Streak 36 | 3 5 11 11 . 3 8 12 25 14 11 18 19 . 4 10 36 . 24 17 Robot Miss Streak 7 | 2 7 2 5 . . 6 7 4 5 4 3 1 . . . 1 . 2 5 Penetration Max 1 | . . . . . . . 1 1 . . 1 . . . . . . . 1 Secondary Targets 19 | . . . 3 . . 4 2 . 1 9 . . . . . . . . . Max Gunslinging Chain 2 | . . . 2 . . 1 1 . 1 2 . . . . . . . . . Shots Hit Robots 1090 | 16 33 64 120 12 3 76 72 119 83 115 62 13 . 3 8 53 . 12 226 Core Hits 598 | 6 18 17 62 5 1 42 77 74 52 62 20 5 . 2 5 21 . 10 119 Critical Kills 4 | . . . 1 . . . . . . 1 . 1 . 1 . . . . . Critical Parts Destroyed 5 | . . . . . . 1 . . . 1 1 . . . 1 . . . 1 Critical Strikes 38 | . 2 5 5 . . 4 . 3 4 3 1 2 . 1 1 1 . . 6 Burn 7 | . . 1 2 . . . . . . . . . . . . 1 . . 3 Destroy 13 | . . 2 3 . . . . 1 . 2 1 2 . 1 . . . . 1 Blast 8 | . 1 2 . . . . . . 4 . . . . . . . . . 1 Corrupt 5 | . 1 . . . . . . 2 . 1 . . . . . . . . 1 Smash 2 | . . . . . . 1 . . . . . . . . 1 . . . . Sever 3 | . . . . . . 3 . . . . . . . . . . . . . Melee Attacks 88 | . . . . 19 9 51 1 . . . 1 . . 4 3 . . . . Impact 13 | . . . . . . 5 . . . . 1 . . 4 3 . . . . Slashing 70 | . . . . 15 8 46 1 . . . . . . . . . . . . Piercing . | . . . . . . . . . . . . . . . . . . . . Sneak Attacks 43 | . . . . 11 1 28 1 . . . . . . . 2 . . . . Combat Hostiles . | . . . . . . . . . . . . . . . . . . . . Follow-up Attacks 3 | . . . . . . 3 . . . . . . . . . . . . . Damage Inflicted 33611 | 206 543 1256 2488 559 42 3288 2127 3848 2847 2526 1239 438 . 45 440 1144 . 613 9962 Guns 18213 | 206 193 499 1948 . 42 628 1800 3077 1335 2414 1239 90 . 45 75 684 . 172 3766 Cannons 5456 | . 316 675 432 . . . . . 789 112 . 128 . . 56 93 . . 2855 Explosions 6334 | . 34 82 103 . . . 258 771 723 . . 220 . . 69 367 . 441 3266 Melee 3528 | . . . . 559 . 2660 69 . . . . . . . 240 . . . . Ramming 80 | . . . 5 . . . . . . . . . . . . . . . 75 Kinetic 12448 | . 316 1011 1855 . 42 315 1473 1227 789 489 1019 90 . 11 12 398 . 53 3348 Thermal 9608 | . 82 163 525 . . 313 585 448 1880 1754 220 128 . 34 63 379 . 119 2915 Explosive 1842 | . . 82 103 . . . . . . . . . . . 69 . . . 1588 Electromagnetic 6105 | 206 145 . . . . . . 2173 178 283 . 220 . . 56 367 . 441 2036 Impact 571 | . . . . . . 331 . . . . . . . . 240 . . . . Slashing 2957 | . . . . 559 . 2329 69 . . . . . . . . . . . . Piercing . | . . . . . . . . . . . . . . . . . . . . Highest Corruption 42 | . . . 2 . . 5 . . 2 2 5 5 5 . . . . 1 42 Average Corruption 8 | . . . 2 . . 4 . . 1 2 4 5 5 . . . . 1 23 Corruption Purged 2 | . . . . . . . . . . . . . . . . . . . 2 Corruption Blocked . | . . . . . . . . . . . . . . . . . . . . Effects 176 | . . . . . . 53 . . 6 8 8 7 2 . . . . . 92 Message Errors 38 | . . . . . . 13 . . 1 2 2 2 1 . . . . . 17 Matter Fused 36 | . . . . . . 12 . . 1 2 3 2 . . . . . . 16 Heat Flow Errors 17 | . . . . . . 4 . . 1 3 1 . 1 . . . . . 7 Energy Discharges 21 | . . . . . . 10 . . 2 . . . . . . . . . 9 Parts Rejected 2 | . . . . . . . . . 1 . . . . . . . . . 1 Parts Fused 1 | . . . . . . 1 . . . . . . . . . . . . . Data Loss (minor) 21 | . . . . . . 9 . . . . 1 3 . . . . . . 8 Data Loss (major) 5 | . . . . . . 2 . . . 1 . . . . . . . . 2 Misfires 1 | . . . . . . . . . . . . . . . . . . . 1 Alerts 2 | . . . . . . 1 . . . . . . . . . . . . 1 Misdirections 10 | . . . . . . . . . . . . . . . . . . . 10 Weapon Failures 22 | . . . . . . 1 . . . . 1 . . . . . . . 20 Overload Shots . | . . . . . . . . . . . . . . . . . . . . Overflow Damage 1192 | . 6 . . 133 . 333 29 14 61 . . . . . 226 . . 26 364 Projectiles 172 | . . . . . . . . . . . . . . . . . . . 172 Explosions 299 | . 6 . . . . . . 14 61 . . . . . . . . 26 192 Melee 721 | . . . . 133 . 333 29 . . . . . . . 226 . . . . Knockbacks 45 | . 7 10 4 . . . . . 8 . . . . . 1 . . . 15 Impact 2 | . . . . . . . . . . . . . . . 1 . . . 1 Kinetic 38 | . 5 10 3 . . . . . 7 . . . . . . . . . 13 Secondary 5 | . 2 . 1 . . . . . 1 . . . . . . . . . 1 Self-Inflicted Damage 696 | . 38 . 40 . . . 24 32 79 . 18 15 . . . . . 79 371 Shots 19 | . 1 . 1 . . . 1 1 2 . 1 1 . . . . . 4 7 Rammed 1 | . . . 1 . . . . . . . . . . . . . . . . Targets Rammed 4 | . . . 1 . . . . . . . . . . . . . . . 3 Kicked 3 | . . . . . . . . . . . . . . . . . . . 3 Crushed . | . . . . . . . . . . . . . . . . . . . . Highest Temperature 448 | 126 163 207 448 6 18 380 245 90 143 427 189 183 191 58 228 325 . 325 351 Average Temperature 92 | 47 62 126 71 5 7 177 88 23 26 126 65 78 117 31 79 102 . 78 102 Received Heat Transfer 3389 | . 126 397 468 6 33 276 96 . 381 343 60 138 . . 9 367 . 39 650 Effects 10 | . . . 4 . . 1 . . . 3 . . . . . 1 . . 1 Shutdowns 2 | . . . . . . . . . . 2 . . . . . . . . . Energy Bleed 3 | . . . . . . 1 . . . . . . . . . 1 . . 1 Interference 3 | . . . 2 . . . . . . 1 . . . . . . . . . Short Circuit 1 | . . . 1 . . . . . . . . . . . . . . . . Damage (minor) 1 | . . . 1 . . . . . . . . . . . . . . . . Siege Activations . | . . . . . . . . . . . . . . . . . . . . Martial Activations . | . . . . . . . . . . . . . . . . . . . . Shielding Activations . | . . . . . . . . . . . . . . . . . . . . Robots Disrupted 1 | . . . . . . . . . . . . . . . . . . . 1 Combat Hostiles 1 | . . . . . . . . . . . . . . . . . . . 1 Robots Corrupted 27 | . . . . . . 1 . 15 . . . 2 . . 1 2 . 2 4 Combat Hostiles 10 | . . . . . . . . . . . . 2 . . . 2 . 2 4 Parts Fried 44 | 2 . . . . . 1 . 26 1 . . . . . . 5 . 5 4 Impact Corruptions 8 | . . . . . . 3 . . . . . . . . 5 . . . . Robots Melted 2 | . . . . . . . . . 1 1 . . . . . . . . . Combat Hostiles 2 | . . . . . . . . . 1 1 . . . . . . . . . Parts Melted 18 | . . . 4 . . . . . 2 1 1 1 . . . 1 . 2 6 Heat Transferred 15338 | . 198 518 1221 . . 340 875 350 3701 2459 370 211 . 74 111 814 . 222 3874 Parts Sabotaged . | . . . . . . . . . . . . . . . . . . . . Parts Stolen . | . . . . . . . . . . . . . . . . . . . . Parts Stripped . | . . . . . . . . . . . . . . . . . . . . Power Chain Reactions 4 | . 1 . . . . . . 2 . . . . . . . . . . 1 Alert | -11 -10 -10 -8 -7 -7 -7 -5 -5 -5 -5 -5 -5 -5 -4 -4 -4 -4 -3 -3 ------- Run | Yrd Mat Sub Mat Fac Sto Rec Fac Was Fac Gar Fac Upp Upp Fac Upp Upp Zhi Pro Res Maximum Alert Level 3 | . . . 1 . 1 . 2 . 2 3 2 . . . . . . . 3 Low Security (%) 66 | 100 100 . 86 100 23 100 . 100 43 . . . . 100 . . . . 6 Level 1 13 | . . . 13 . 76 . 76 . 20 12 . . . . . . . . 37 Level 2 13 | . . . . . . . 22 . 35 20 100 . . . . . . . 41 Level 3 6 | . . . . . . . . . . 66 . . . . . . . . 14 Level 4 . | . . . . . . . . . . . . . . . . . . . . Level 5 . | . . . . . . . . . . . . . . . . . . . . High Security . | . . . . . . . . . . . . . . . . . . . . Max Security . | . . . . . . . . . . . . . . . . . . . . Peak Influence 1015 | 10 135 . 344 42 284 160 568 196 455 1015 569 . . 116 . . . . 933 Initial 532 | . . . . 12 13 110 200 196 . 290 532 . . 116 . . . . 117 Average 194 | 1 24 . 104 20 198 24 328 19 254 742 530 . . 76 . . . . 491 Influence Increases 7139 | 25 319 . 929 111 371 408 830 8 719 765 186 70 . 71 110 129 . 315 1773 Destroy 0b10 Robot/C 3300 | . 160 . 560 . 60 220 320 . 300 520 60 60 . . 20 100 . 100 820 Destroy 0b10 Robot/NC 400 | 25 30 . 80 30 . 65 20 . 30 . 20 . . 5 . 5 . . 90 Destroy Leader 580 | . 46 . 130 4 . . 44 . 72 20 34 10 . . . 20 . 20 180 Allied During Kill 93 | . . . . . 5 70 14 . . . . . . . . 4 . . . Trap Triggered on 0b10 20 | . . . . . 10 . . . . . . . . . . . . . 10 Successful Hack 166 | . 18 . 23 30 5 7 . . . . 8 . . . . . . . 75 Select Force Hacks 30 | . . . . . 30 . . . . . . . . . . . . . . Disable Machine 510 | . 30 . 45 30 45 30 90 . 105 . 15 . . 30 . . . . 90 Anti-Garrison Action 300 | . . . . . 200 . . . . 100 . . . . . . . . . Destroy Structure 730 | . 5 . 31 2 1 16 82 8 122 5 34 . . 6 . . . . 418 Advance Influence 200 | . . . . . . . 200 . . . . . . . . . . . . Partial Spotted 75 | . 15 . . 15 15 . . . . . . . . 30 . . . . . Lose Combat Pursuer 735 | . 15 . 60 . . . 60 . 90 120 15 . . . 90 . . 195 90 Influence Decreases 6209 | 25 319 . 900 109 118 692 270 568 304 165 683 333 69 220 127 149 . 140 1018 Entered New Map 1570 | . . . . 17 18 174 . 364 . 125 483 193 49 70 15 4 . . 58 Time Decay 3594 | 25 309 . 485 92 60 468 230 204 254 . 180 130 20 150 112 145 . 120 610 Lost Part 540 | . 10 . 10 . . 50 . . 50 40 20 10 . . . . . . 350 Lost Ally 100 | . . . . . 40 . 40 . . . . . . . . . . 20 . Purge Threat 405 | . . . 405 . . . . . . . . . . . . . . . . Squads Dispatched 35 | . 1 . 1 2 3 . 1 . 4 . 3 . . 1 . . . . 19 Investigation 8 | . . . 1 1 2 . . . . . . . . . . . . . 4 Extermination 8 | . . . . 1 . . . . 1 . . . . 1 . . . . 5 Reinforcement 14 | . 1 . . . 1 . 1 . 3 . 2 . . . . . . . 6 Assault 2 | . . . . . . . . . . . 1 . . . . . . . 1 Garrison 3 | . . . . . . . . . . . . . . . . . . . 3 Intercept . | . . . . . . . . . . . . . . . . . . . . Searches Triggered . | . . . . . . . . . . . . . . . . . . . . Construction Impeded 2 | . . . . . . . . . 1 . . . . . . . . . 1 Haulers Reinforced 2 | . . . . . . . 1 . . . 1 . . . . . . . . Active Scanning Responses . | . . . . . . . . . . . . . . . . . . . . Cargo Convoy Interrupts 1 | . . . . . . . . . . . . . . . . . . . 1 Stealth | -11 -10 -10 -8 -7 -7 -7 -5 -5 -5 -5 -5 -5 -5 -4 -4 -4 -4 -3 -3 --------- Run | Yrd Mat Sub Mat Fac Sto Rec Fac Was Fac Gar Fac Upp Upp Fac Upp Upp Zhi Pro Res Distress Signals 11 | . 1 . 1 . 2 1 1 . 1 . . . . . . . . . 4 Communications Jammed . | . . . . . . . . . . . . . . . . . . . . Distress Signals . | . . . . . . . . . . . . . . . . . . . . Times Spotted 280 | . 14 9 38 5 12 12 18 . 25 30 7 5 . 1 6 6 . 14 78 Peak Tracking Total 14 | . 4 2 7 4 8 6 5 . 8 12 2 3 . 1 4 3 . 5 14 Tactical Retreats 22 | . 1 . 1 . . . 2 . 4 4 1 . . . 2 . . 4 3 Traps | -11 -10 -10 -8 -7 -7 -7 -5 -5 -5 -5 -5 -5 -5 -4 -4 -4 -4 -3 -3 ------- Run | Yrd Mat Sub Mat Fac Sto Rec Fac Was Fac Gar Fac Upp Upp Fac Upp Upp Zhi Pro Res Traps Triggered 10 | . . . 2 . . . 1 . . 1 1 . . 1 . . . . 4 Indirectly . | . . . . . . . . . . . . . . . . . . . . Trap Hack Attempts . | . . . . . . . . . . . . . . . . . . . . Triggered . | . . . . . . . . . . . . . . . . . . . . Disarmed . | . . . . . . . . . . . . . . . . . . . . Reprogrammed 6 | . . . . . 6 . . . . . . . . . . . . . . Reused 2 | . . . . . 1 . . . . . . . . . . . . . 1 Traps Extracted . | . . . . . . . . . . . . . . . . . . . . Installed 5 | . . . . . . . . . . . . . . . . . . . 5 Triggered 2 | . . . . . 1 . . . . . . . . . . . . . 1 Most Traps Carried 5 | . . . . . . . . . . . . . . . . 5 5 5 5 Machines | -11 -10 -10 -8 -7 -7 -7 -5 -5 -5 -5 -5 -5 -5 -4 -4 -4 -4 -3 -3 ---------- Run | Yrd Mat Sub Mat Fac Sto Rec Fac Was Fac Gar Fac Upp Upp Fac Upp Upp Zhi Pro Res Machines Disabled 37 | . 2 . 3 2 3 2 6 . 7 2 1 . . 2 . 1 . . 6 Max in Single Turn 4 | . 1 . 1 1 1 1 2 . 4 1 1 . . 1 . 1 . . 1 Garrison Access 2 | . . . 1 . 1 . . . . . . . . . . . . . . Garrison Relay 2 | . . . . . . . . . . 2 . . . . . . . . . Machines Repaired . | . . . . . . . . . . . . . . . . . . . . Machines Dismantled . | . . . . . . . . . . . . . . . . . . . . Machines Sabotaged . | . . . . . . . . . . . . . . . . . . . . Overloaded Fab Kills . | . . . . . . . . . . . . . . . . . . . . Hacking | -11 -10 -10 -8 -7 -7 -7 -5 -5 -5 -5 -5 -5 -5 -4 -4 -4 -4 -3 -3 --------- Run | Yrd Mat Sub Mat Fac Sto Rec Fac Was Fac Gar Fac Upp Upp Fac Upp Upp Zhi Pro Res Machines Accessed 58 | . 8 1 14 7 5 7 2 . 1 . 1 . . . 1 . 4 . 7 Terminals 29 | . 6 . 9 4 2 3 1 . . . 1 . . . 1 . . . 2 Fabricators 3 | . . . . 1 . . . . . . . . . . . . . . 2 Repair Stations 2 | . 1 . 1 . . . . . . . . . . . . . . . . Recycling Units 11 | . 1 . 2 1 2 3 1 . . . . . . . . . . . 1 Scanalyzers 4 | . . . 1 1 . . . . . . . . . . . . . . 2 Garrison Access 3 | . . . 1 . 1 . . . 1 . . . . . . . . . . Total Hacks 192 | . 26 4 63 21 9 25 6 . 1 . 2 . . . 3 . 17 . 15 Successful 112 | . 14 4 45 6 8 8 1 . 1 . 1 . . . 3 . 17 . 4 Failed 78 | . 12 . 17 14 1 17 5 . . . 1 . . . . . . . 11 Catastrophic 15 | . 1 . 2 5 . 2 1 . . . . . . . . . . . 4 Database Lockouts 2 | . . . 1 1 . . . . . . . . . . . . . . . Manual 98 | . 20 1 32 13 6 16 1 . . . 2 . . . . . . . 7 Terminals 89 | . 21 . 35 10 4 8 3 . . . 2 . . . 3 . . . 3 Fabricators 6 | . . . . 2 . . . . . . . . . . . . . . 4 Repair Stations 6 | . 3 . 3 . . . . . . . . . . . . . . . . Recycling Units 37 | . 2 . 5 4 4 15 3 . . . . . . . . . . . 4 Scanalyzers 28 | . . . 19 5 . . . . . . . . . . . . . . 4 Garrison Access 3 | . . . 1 . 1 . . . 1 . . . . . . . . . . Terminal Hacks 41 | . 2 4 8 1 2 3 . . . . 1 . . . 3 . 17 . . Record 12 | . . 4 . . . . . . . . . . . . 3 . 5 . . Part Schematic 4 | . . . . . . . . . . . . . . . . . 4 . . Robot Schematic 2 | . 1 . . . . 1 . . . . . . . . . . . . . Robot Analysis 7 | . 1 . 2 . . . . . . . . . . . . . 4 . . Prototype ID Bank 4 | . . . . . . . . . . . . . . . . . 4 . . Open Door 1 | . . . . . 1 . . . . . . . . . . . . . . Branch Access Points 2 | . . . 1 . . . . . . . 1 . . . . . . . . Scanalyzer Index 1 | . . . . 1 . . . . . . . . . . . . . . . Unreport Threat 4 | . . . 4 . . . . . . . . . . . . . . . . Locate Traps 1 | . . . 1 . . . . . . . . . . . . . . . . Reprogram Traps 1 | . . . . . 1 . . . . . . . . . . . . . . Release Object 2 | . . . . . . 2 . . . . . . . . . . . . . Fabricator Hacks . | . . . . . . . . . . . . . . . . . . . . Repair Station Hacks 5 | . 2 . 3 . . . . . . . . . . . . . . . . Scan Component 3 | . 1 . 2 . . . . . . . . . . . . . . . . Repair 2 | . 1 . 1 . . . . . . . . . . . . . . . . Recycling Unit Hacks 8 | . 1 . 1 . 2 3 1 . . . . . . . . . . . . Retrieve Components 8 | . 1 . 1 . 2 3 1 . . . . . . . . . . . . Scanalyzer 23 | . . . 18 2 . . . . . . . . . . . . . . 3 Insert Component 12 | . . . 9 1 . . . . . . . . . . . . . . 2 Analyze 9 | . . . 9 . . . . . . . . . . . . . . . . Retrieve Study 2 | . . . . 1 . . . . . . . . . . . . . . 1 Garrison Access Hacks 2 | . . . 1 . . . . . 1 . . . . . . . . . . Unlock Access 1 | . . . . . . . . . 1 . . . . . . . . . . Seal Access 1 | . . . 1 . . . . . . . . . . . . . . . . Unauthorized Hacks 33 | . 9 . 14 3 4 2 . . . . . . . . . . . . 1 Terminals 26 | . 9 . 13 2 2 . . . . . . . . . . . . . . Track 8 | . 3 . 3 1 1 . . . . . . . . . . . . . . Assimilate 1 | . . . . . 1 . . . . . . . . . . . . . . Botnet 4 | . 1 . 3 . . . . . . . . . . . . . . . . Operators 1 | . . . 1 . . . . . . . . . . . . . . . . Skim 12 | . 5 . 6 1 . . . . . . . . . . . . . . . Fabricators 1 | . . . . . . . . . . . . . . . . . . . 1 Liberate 1 | . . . . . . . . . . . . . . . . . . . 1 Repair Stations . | . . . . . . . . . . . . . . . . . . . . Recycling Units 5 | . . . 1 1 1 2 . . . . . . . . . . . . . Reject 4 | . . . 1 1 . 2 . . . . . . . . . . . . . Tunnel 1 | . . . . . 1 . . . . . . . . . . . . . . Scanalyzers . | . . . . . . . . . . . . . . . . . . . . Garrison Access 1 | . . . . . 1 . . . . . . . . . . . . . . Jam 1 | . . . . . 1 . . . . . . . . . . . . . . Data Cores Recovered . | . . . . . . . . . . . . . . . . . . . . Used . | . . . . . . . . . . . . . . . . . . . . Hacking Detections 43 | . 6 . 13 7 3 5 1 . . . 1 . . . 1 . . . 6 Full Trace Events 11 | . . . 1 1 . 4 . . . . . . . . 1 . . . 4 Feedback Events 1 | . . . . . . . . . . . . . . . . . . . 1 Corruption 1 | . . . . . . . . . . . . . . . . . . . 1 Feedback Blocked . | . . . . . . . . . . . . . . . . . . . . Robot Schematics Acquired 2 | . 1 . . . . 1 . . . . . . . . . . . . . Robots Built . | . . . . . . . . . . . . . . . . . . . . Authchips . | . . . . . . . . . . . . . . . . . . . . Time . | . . . . . . . . . . . . . . . . . . . . Total Robot Build Rating . | . . . . . . . . . . . . . . . . . . . . Part Schematics Acquired 13 | . . . 9 . . . . . . . . . . . . . 4 . . Parts Built . | . . . . . . . . . . . . . . . . . . . . Authchips . | . . . . . . . . . . . . . . . . . . . . Time . | . . . . . . . . . . . . . . . . . . . . Total Part Build Rating . | . . . . . . . . . . . . . . . . . . . . Part Studies Acquired 2 | . . . . 1 . . . . . . . . . . . . . . 1 Parts Repaired 2 | . 1 . 1 . . . . . . . . . . . . . . . . Time 52 | . 26 . 26 . . . . . . . . . . . . . . . . Parts Recycled . | . . . . . . . . . . . . . . . . . . . . Recycled Matter . | . . . . . . . . . . . . . . . . . . . . Retrieved Matter . | . . . . . . . . . . . . . . . . . . . . Retrieved Components 22 | . 2 . 9 . 3 5 3 . . . . . . . . . . . . Parts Scanalyzed 10 | . . . 9 1 . . . . . . . . . . . . . . . Part Schematics Acquired 9 | . . . 9 . . . . . . . . . . . . . . . . Parts Damaged 1 | . . . . 1 . . . . . . . . . . . . . . . Bothacking | -11 -10 -10 -8 -7 -7 -7 -5 -5 -5 -5 -5 -5 -5 -4 -4 -4 -4 -3 -3 ------------ Run | Yrd Mat Sub Mat Fac Sto Rec Fac Was Fac Gar Fac Upp Upp Fac Upp Upp Zhi Pro Res Used RIF Installer . | . . . . . . . . . . . . . . . . . . . . Robots Hacked 2 | . . . . 1 1 . . . . . . . . . . . . . . Non-combat 2 | . . . . 1 1 . . . . . . . . . . . . . . Combat . | . . . . . . . . . . . . . . . . . . . . Robot Hacks Applied 4 | . . . . 3 1 . . . . . . . . . . . . . . parse_system 1 | . . . . . 1 . . . . . . . . . . . . . . no_distress 2 | . . . . 2 . . . . . . . . . . . . . . . find_recycling 1 | . . . . 1 . . . . . . . . . . . . . . . Relay Couplers Released 7 | . . . . . . . . . . 7 . . . . . . . . . Machine Destruction 7 | . . . . . . . . . . 7 . . . . . . . . . Fabnet Peak Effective % . | . . . . . . . . . . . . . . . . . . . . Robots Rewired 21 | . . . . 1 . 16 . . . . . . . . . 4 . . . Allies Hacked . | . . . . . . . . . . . . . . . . . . . . Hacks Repelled . | . . . . . . . . . . . . . . . . . . . . Allies | -11 -10 -10 -8 -7 -7 -7 -5 -5 -5 -5 -5 -5 -5 -4 -4 -4 -4 -3 -3 -------- Run | Yrd Mat Sub Mat Fac Sto Rec Fac Was Fac Gar Fac Upp Upp Fac Upp Upp Zhi Pro Res Total Allies 44 | . . . . 1 3 16 . 20 . . . . . . . 4 . . . Largest Group 21 | . . . . 1 2 16 9 21 2 . . . . . . 4 1 1 . Highest-Rated Group 861 | . . . . 16 62 411 239 861 66 . . . . . . 171 30 30 . Highest-Rated Ally 50 | . . . . 16 31 40 40 50 40 . . . . . . 47 30 30 . Initial Warlord ECA Mod 2 | . . . . . . . . . . . 2 2 2 1 1 1 1 . . Total Orders 12 | . . . . . . 4 7 . . . . . . . . . . 1 . STAY 2 | . . . . . . 1 1 . . . . . . . . . . . . ROAM 5 | . . . . . . . 4 . . . . . . . . . . 1 . FOLLOW 3 | . . . . . . 2 1 . . . . . . . . . . . . DROP 1 | . . . . . . . 1 . . . . . . . . . . . . COLLECT 1 | . . . . . . 1 . . . . . . . . . . . . . Ally Attacks 64 | . . . . 6 18 22 1 . . . . . . . . 15 . 2 . Total Damage 1644 | . . . . 90 314 493 258 . . . . . . . . 456 . 33 . Kills 10 | . . . . . 3 3 4 . . . . . . . . . . . . Allies Corrupted 15 | . . . . . . 1 . 14 . . . . . . . . . . . Allies Melted . | . . . . . . . . . . . . . . . . . . . . Intel | -11 -10 -10 -8 -7 -7 -7 -5 -5 -5 -5 -5 -5 -5 -4 -4 -4 -4 -3 -3 ------- Run | Yrd Mat Sub Mat Fac Sto Rec Fac Was Fac Gar Fac Upp Upp Fac Upp Upp Zhi Pro Res Active Infowar (turns) 5462 | 11 247 . . . . . 287 2085 234 . . . . . 224 550 151 127 1546 Optics 880 | . . . . . . . . . . . . . . . . . . . 880 Sensors 1732 | . . . . . . . . . . . . . . . 224 550 151 127 680 Terrain 3349 | 11 247 . . . . . 287 2085 234 . . . . . . . . . 485 Robot Analysis Total 7 | . 1 . 2 . . . . . . . . . . . . . 4 . . Derelict Logs Recovered 3 | . . 1 . . . . . . . . . 1 . . . 1 . . . Drone Launches . | . . . . . . . . . . . . . . . . . . . . Drone Recoveries . | . . . . . . . . . . . . . . . . . . . . Exploration | -11 -10 -10 -8 -7 -7 -7 -5 -5 -5 -5 -5 -5 -5 -4 -4 -4 -4 -3 -3 ------------- Run | Yrd Mat Sub Mat Fac Sto Rec Fac Was Fac Gar Fac Upp Upp Fac Upp Upp Zhi Pro Res Turns Passed 16935 | 117 1419 2382 1737 207 127 2606 495 2085 658 872 370 260 56 305 264 557 161 276 1981 Spaces Moved 9860 | 66 619 872 651 433 268 1330 313 942 425 314 205 402 95 327 330 526 180 321 1241 Core 2 | 2 . . . . . . . . . . . . . . . . . . . Treads 3979 | . 266 872 409 . . 897 . . . . . . . 83 330 526 180 321 95 Legs 2002 | . 222 . . . . 50 . 288 . 91 205 . . . . . . . 1146 Wheels 978 | 64 131 . 242 9 . 382 150 . . . . . . . . . . . . Hover 844 | . . . . . . . 163 344 121 216 . . . . . . . . . Flight 2055 | . . . . 424 268 1 . 310 304 7 . 402 95 244 . . . . . Fastest Speed 25 | 50 90 240 110 25 25 25 60 60 66 66 58 58 58 58 58 58 58 58 58 Average Speed 114 | 89 191 240 207 26 25 146 66 102 91 89 86 58 58 58 58 58 58 58 94 Slowest Speed 330 | 100 330 240 320 125 99 270 74 209 102 306 182 58 58 58 58 58 58 58 174 Overloaded Moves . | . . . . . . . . . . . . . . . . . . . . Propulsion Burnouts . | . . . . . . . . . . . . . . . . . . . . Robots Hopped 5 | . . . . 2 1 . . . 1 . . . . 1 . . . . . Potential Cave-ins 11 | . . . . . . . . . . . . . . . 3 . . . 8 Cave-ins Triggered . | . . . . . . . . . . . . . . . . . . . . Teleports 1 | . . . . . . . . . . . . . . . . . . . 1 Exploration Rate (%) 44 | 4 83 47 72 17 44 99 6 96 14 38 7 70 18 8 55 64 62 48 36 Regions Visited 19 Branch Regions 9 Pre-discovered Areas 7 | . . . 2 . 1 . . . . . . 1 . . . . 3 . . Known Exits Taken 12 | . 1 1 1 1 1 . . . 1 . 1 . . 1 1 1 1 1 . Unknown Exits Taken 4 | 1 . . . . . 1 . . . . . 1 1 . . . . . . Scrap Searched 16 | . . 7 . . . . . . . . . 2 . . 4 . . 3 . Spaces Dug 98 | . . . 1 2 1 1 . . 12 . . . . 3 32 2 . . 44 Terrain Destroyed 564 | . 3 19 26 2 1 1 36 4 67 1 15 1 . 3 70 2 . 49 264 Melee 8 | . . . . 2 1 1 . . . . . . . 3 1 . . . . Projectile 137 | . . 1 11 . . . 2 . 26 1 5 1 . . 4 2 . . 84 AOE 418 | . 3 18 15 . . . 33 4 41 . 10 . . . 65 . . 49 180 Terrain Rammed . | . . . . . . . . . . . . . . . . . . . . Walls Destroyed . | . . . . . . . . . . . . . . . . . . . . Machines Disabled . | . . . . . . . . . . . . . . . . . . . . Actions | -11 -10 -10 -8 -7 -7 -7 -5 -5 -5 -5 -5 -5 -5 -4 -4 -4 -4 -3 -3 --------- Run | Yrd Mat Sub Mat Fac Sto Rec Fac Was Fac Gar Fac Upp Upp Fac Upp Upp Zhi Pro Res Total 14038 | 92 778 1086 887 507 313 1895 513 1929 577 742 342 413 95 430 378 739 237 385 1700 Wait 2491 | . 79 137 52 15 1 327 107 842 72 332 74 3 . 72 32 96 38 44 168 Move 9832 | 65 618 871 650 428 265 1329 313 941 422 313 204 401 94 324 329 525 179 320 1241 Hop 5 | . . . . 2 1 . . . 1 . . . . 1 . . . . . Pick Up 204 | 6 16 14 33 11 10 31 18 8 11 5 4 . . 10 1 6 5 . 15 Fast Attach 75 | 7 6 2 7 3 5 5 4 2 3 2 2 . . 4 . . 6 . 17 Attach 87 | . 3 4 10 6 . 9 6 3 5 6 5 . . 3 . . . . 27 Detach 16 | . . . . . 1 3 1 3 1 . 2 . . 2 . . . . 3 Swap 95 | . 4 5 15 4 5 9 9 2 1 2 4 3 . 1 4 6 . 5 16 Drop 229 | . 11 12 37 19 15 30 17 16 9 6 10 . 1 5 1 6 9 . 25 Fire 736 | 14 41 41 78 . 1 17 37 111 52 74 32 6 . 4 8 26 . 16 178 Melee 84 | . . . . 19 9 47 1 . . . 1 . . 4 3 . . . . Ram . | . . . . . . . . . . . . . . . . . . . . Kick 3 | . . . . . . . . . . . . . . . . . . . 3 Crush 1 | . . . 1 . . . . . . . . . . . . . . . . Escape Stasis 8 | . . . . . . . . . . 2 4 . . . . . . . 2 Rewire 163 | . . . . . . 88 . 1 . . . . . . . 74 . . . Trap 5 | . . . . . . . . . . . . . . . . . . . 5 Miscellaneous 4 | . . . 4 . . . . . . . . . . . . . . . . Route ------- -11/Scrapyard -10/Materials (discovered 5 exits: *Mat x3 / [*Min] / *Sub) -10/Subcaves (discovered 3 exits: *Mat x2 / Rec) -8/Materials (discovered 3 exits: *Fac x3) -7/Factory (discovered 5 exits: Fac / *Sto x2 / *Low x2) -7/Storage -7/Recycling -5/Factory -5/Waste -5/Factory (discovered 3 exits: *Upp x2 / Gar) -5/Garrison -5/Factory (discovered 2 exits: *Upp x2) -5/Upper Caves -5/Upper Caves -4/Factory (discovered 3 exits: Res / *Upp x2) -4/Upper Caves -4/Upper Caves -4/Zhirov -3/Proximity Caves -3/Research History --------- Turn | Location | Event 5 | -11/Scrapyard | Discovered new exit (range 16) 118 | -11/Scrapyard | Entered Materials 243 | -10/Materials | Discovered new exit (range 7) 300 | -10/Materials | Build established: Mutant 554 | -10/Materials | Discovered new exit (range 11) 699 | -10/Materials | Repaired Lgt. Cannon 718 | -10/Materials | Discovered new exit (range 16) 1136 | -10/Materials | Identified exit to Subcaves 1264 | -10/Materials | Learned Storage trap positions 1350 | -10/Materials | Learned location of 2 exits from Subcaves 1420 | -10/Materials | Loaded intel: 13 trap records 1472 | -10/Materials | Learned location of 1 exit from Storage 1534 | -10/Materials | Identified exit to Materials 1537 | -10/Materials | Entered Subcaves 1538 | -10/Subcaves | Identified exit to Materials 1597 | -10/Subcaves | Identified exit to Recycling 2775 | -10/Subcaves | Core integrity fell below 50% 2822 | -10/Subcaves | Lost 3 parts (1p1n1w) 3384 | -10/Subcaves | Visited Clippyterm 3391 | -10/Subcaves | Learned Factory trap positions 3919 | -10/Subcaves | Entered Materials 3919 | -8/Materials | Evolved 4 slots: Propulsion x1, Utility x2, Weapon x1 4025 | -8/Materials | Destroyed 7 combat bots 4219 | -8/Materials | Repaired Lgt. Treads 4333 | -8/Materials | Build established: Gunner 4923 | -8/Materials | Build established: Scavenger-Tank 4990 | -8/Materials | Learned location of 3 exits from Factory 5037 | -8/Materials | Learned location of Storage (-7) 5074 | -8/Materials | Learned Factory emergency access door positions 5103 | -8/Materials | Learned location of 1 exit from Extension 5104 | -8/Materials | Discovered new exit (range 13) 5122 | -8/Materials | Learned Factory trap positions 5133 | -8/Materials | Learned location of Zion (-7) 5154 | -8/Materials | Learned Factory trap positions 5187 | -8/Materials | Learned location of 2 exits from Lower Caves 5228 | -8/Materials | Identified exit to Factory 5593 | -8/Materials | Central database locked down 5656 | -8/Materials | Entered Factory 5656 | -7/Factory | Evolved 2 slots: Propulsion x2 5657 | -7/Factory | Identified exit to Storage 5658 | -7/Factory | Identified exit to Lower Caves 5658 | -7/Factory | Identified exit to Factory 5659 | -7/Factory | Loaded intel: 101 trap records 5732 | -7/Factory | Discovered exit to Lower Caves (range 6) 5844 | -7/Factory | Central database locked down 5863 | -7/Factory | Entered Storage 5865 | -7/Storage | Loaded intel: 19 trap records 5887 | -7/Storage | Met a pair of Derelict thieves 5948 | -7/Storage | Build established: Hacker-Sprinter 5989 | -7/Storage | Used back door to open Recycling access 5990 | -7/Storage | Entered Recycling 6064 | -7/Recycling | Lost 5 parts (1p2n1u1w) 6522 | -7/Recycling | Build established: Commander-Mutant 7009 | -7/Recycling | Discovered new exit (range 15) 7385 | -7/Recycling | Entered Scraplab 7393 | -7/Recycling | Found Prototype Device 7393 | -7/Recycling | Identified Scrap Engine 8101 | -7/Recycling | Murdered 5 allies 8473 | -7/Recycling | Build established: Commander-Construct 8596 | -7/Recycling | Entered Factory 8596 | -5/Factory | Accompanied by 9 allies 8596 | -5/Factory | Evolved 4 slots: Power x1, Propulsion x1, Utility x2 8597 | -5/Factory | Loaded intel: 98 trap records 9060 | -5/Factory | Lost 4 allies 9091 | -5/Factory | Manually triggered Chute Trap 9091 | -5/Factory | Sucked down chute 9091 | -5/Factory | Entered Waste 9092 | -5/Waste | Joined by Warlord forces that had cleared the area 9101 | -5/Waste | 1 allies followed down the chute 9288 | -5/Waste | Discovered new exit (range 15) 9396 | -5/Waste | Build established: Construct 9566 | -5/Waste | Murdered 7 allies 10266 | -5/Waste | Murdered 9 allies 11176 | -5/Waste | Entered Factory 11176 | -5/Factory | Accompanied by 2 allies 11177 | -5/Factory | Loaded intel: 118 trap records 11277 | -5/Factory | Discovered new exit (range 19) 11336 | -5/Factory | Discovered new exit (range 22) 11504 | -5/Factory | Spotted B-75 Beast 11638 | -5/Factory | Destroyed B-75 Beast 11716 | -5/Factory | Identified exit to Garrison 11834 | -5/Factory | Entered Garrison 11858 | -5/Garrison | Triggered checkpoint 11942 | -5/Garrison | Garrison Relay disabled 11962 | -5/Garrison | Triggered checkpoint 12053 | -5/Garrison | Garrison Relay disabled 12085 | -5/Garrison | Triggered checkpoint 12331 | -5/Garrison | Destroyed 7 combat bots 12594 | -5/Garrison | Spotted B-75 Beast 12594 | -5/Garrison | Spotted B-75 Beast 12606 | -5/Garrison | Triggered checkpoint 12693 | -5/Garrison | Discovered new exit (range 13) 12706 | -5/Garrison | Entered Factory 12793 | -5/Factory | Identified exit to Upper Caves 13006 | -5/Factory | First assault squad dispatched 13073 | -5/Factory | Core integrity fell below 50% 13076 | -5/Factory | Entered Upper Caves 13109 | -5/Upper Caves | Met a Warlord Commander 13110 | -5/Upper Caves | Learned location of Warlord (-5) 13111 | -5/Upper Caves | Warlord Commander delivered Encrypted Comm Array 13230 | -5/Upper Caves | Encountered a Warlord checkpoint 13278 | -5/Upper Caves | Spotted B-75 Beast 13281 | -5/Upper Caves | Learned 4 Factory zone layouts 13329 | -5/Upper Caves | Discovered new exit (range 13) 13332 | -5/Upper Caves | Attracted the attention of an 0b10 checkpoint 13336 | -5/Upper Caves | Entered another Upper Caves area 13382 | -5/Upper Caves | Discovered new exit (range 7) 13392 | -5/Upper Caves | Entered Factory 13392 | -4/Factory | Evolved 2 slots: Power x1, Weapon x1 13393 | -4/Factory | Identified exit to Research 13393 | -4/Factory | Identified exit to Upper Caves 13673 | -4/Factory | Discovered exit to Upper Caves (range 7) 13697 | -4/Factory | Entered Upper Caves 13792 | -4/Upper Caves | Identified exit to Upper Caves 13839 | -4/Upper Caves | Attracted the attention of an 0b10 checkpoint 13961 | -4/Upper Caves | Entered another Upper Caves area 13969 | -4/Upper Caves | Attracted the attention of an 0b10 checkpoint 13982 | -4/Upper Caves | Learned Research garrison access intel 14077 | -4/Upper Caves | Attacked by a delusional Derelict stockpiling Unaware 14369 | -4/Upper Caves | Spotted B-86 Titan 14406 | -4/Upper Caves | Destroyed B-86 Titan 14433 | -4/Upper Caves | Lost 3 allies 14490 | -4/Upper Caves | Discovered new exit (range 9) 14518 | -4/Upper Caves | Identified exit to Zhirov 14518 | -4/Upper Caves | Entered Zhirov 14518 | -4/Zhirov | Accompanied by 1 ally 14518 | -4/Zhirov | Discovered new exit (range 3) 14529 | -4/Zhirov | Met Zhirov 14541 | -4/Zhirov | Learned location of Quarantine (-3) 14541 | -4/Zhirov | Learned location of Testing (-2) 14541 | -4/Zhirov | Learned location of Command (-1) 14552 | -4/Zhirov | Zhirov requested help retrieving the SGEMP Prototype 14570 | -4/Zhirov | Found Alien Artifact 14579 | -4/Zhirov | Found Alien Artifact 14579 | -4/Zhirov | Identified Integrated Reactor 14579 | -4/Zhirov | Installed Integrated Reactor, increased core energy generation (+10) 14641 | -4/Zhirov | Identified exit to Proximity Caves 14679 | -4/Zhirov | Entered Proximity Caves 14679 | -3/Proximity Caves | Accompanied by 1 ally 14798 | -3/Proximity Caves | Attracted the attention of an 0b10 checkpoint 14834 | -3/Proximity Caves | Spotted B-86 Titan 14928 | -3/Proximity Caves | Discovered exit to Research (range 8) 14955 | -3/Proximity Caves | Entered Research 14955 | -3/Research | Evolved 2 slots: Utility x2 14956 | -3/Research | Loaded intel: 4 garrison access locations 15074 | -3/Research | Garrison activated, responded to threat 15111 | -3/Research | Destroyed 8 combat bots 15664 | -3/Research | Spotted B-86 Titan 15837 | -3/Research | System corruption reached 10% 15876 | -3/Research | Lost 12 parts (3p3n2u4w) 15883 | -3/Research | Destroyed 8 combat bots 16133 | -3/Research | Cargo convoy interrupted 16148 | -3/Research | Build established: Gunner 16197 | -3/Research | Core integrity fell below 50% 16205 | -3/Research | First assault squad dispatched 16230 | -3/Research | System corruption reached 30% 16259 | -3/Research | Identified Transdimensional Reconstructor 16259 | -3/Research | Warped through subspace 16282 | -3/Research | Lost 4 parts (1n1u2w) 16634 | -3/Research | Build established: Mutant 16649 | -3/Research | Core integrity fell below 20% 16712 | -3/Research | Lost 3 parts (1n1u1w) 16829 | -3/Research | Lost 7 parts (1p3n2u1w) 16936 | -3/Research | Destroyed by G-67 Veteran with Field Laser Last Messages --------------- 16904_ Penetrated by Slug. 16905_ Y-72 Warden system terminally corrupted. 16906_ ALERT: Potential suspicious activity detected, Programmers report to Research Zone 9V. 16913_ K-01 Serf collects debris. 16918_ Kicked K-01 Serf out of the way. 16918_ K-01 Serf destroyed. 16919_ Acquired 7 matter. 16921_ System corrupted: Heat flow error (+204). 16921_ Acquired 82 matter. 16922_ K-01 Serf collects debris. 16924_ U-05 Engineer lays Concrete. 16925_ U-05 Engineer builds a Wall. 16927_ K-01 Serf collects debris. 16929_ U-05 Engineer lays Concrete. 16930_ K-01 Serf collects debris. 16931_ U-05 Engineer lays Concrete. 16934_ K-01 Serf collects debris. 16935_ U-05 Engineer lays Concrete. Map ----- +----------------------------------------------------+ | ??????????????????# # !#??????? | | ??????????????????# # #??????? | | ??????????????????# # ! #??????? | | ??????????????????# ######+####??????? | | ??????????????????# #????# #?????????? | | ??????????????????#######+############ #?????????? | | ??????????????????????# # #####?????? | | ??????????????????????# #?????? | | ??????????????????????# #????## | | ??????????????????????# ##### # | | ??????????????????????# ## # # | | ??????????????????????### ## ! | | ????????????????????????# # #! | | ????????????????????????# # !!##!#% | | ????????????????????????# !##%## | | ????????????????????????# #######+### # !+==[ | | ????????????#+#####????##=##??? ##### ##+## | | ????????? H ###u =#? #??# ! = | | ????????? ## #??## | | ????????? ### ## #???# | | ????????????###### ???##;############?#?#! # !# | | ???????????????????????# ##### = # # | | ???????????????????????#/ #?######## # | | ???????????????????????# ! #?# !## ! # | | ???????????????????????# #?# ###### | | ???????????????????????# @ ! #?# #????? | | ???????????????????????##/############# ????#? | | ?????? ????????????????? ##+######### | | ???????????????????????? + | | ?????????????????????? gg ######### | | ???????????????????????##/######### ##+#######?# | | ####????????????????????# ???????# # ! ##?# | | #?? ?????????????????# ? ????# + #??# | | #????????????????????# ? ???#?# # [ [ #??# | | ##? ?????????????????? ???????# ############ | | #?? ??????????? ? ??? ? ?"???# # #? | | #???? ?? ????????????* ? ? ???# # #? | | ##??????? ????? ??? ?? ??????# + #? | | #?????"???? ?????????? ? ?""#?# # #? | | #???????"?? ? ???? ??# ?"?#?# # #? | | +###?#?????????? ????? ?? ? ### #? #? | | #? ??"""???? ????? ?? # ?? ? ??# #? #? | | # ??"???""????#??#?#?#?####??#### #? #? | | #?? ???? ?? ? ?##???# ######### ## ###########? | | #? ????? ? ???????### """" ## ###??#?????# | | # ????? ? ? ????? "S"" # ##?#??????? | | #? ? ?? ?? ???### # "" "" # "" #?????????? | | ##+#####+####?## # + T" ##????#??#? | | #?## #??#?# !=!# ###???????? | | #### #?#??# ## !! !%!# =##??#?#???? | +----------------------------------------------------+ Best States ------------- Heat Dissipation 155 Coolant Potential 100 Energy Generation 65 Energy Capacity 1089 Matter Stores 300 Matter Capacity 300 Sight Range 22 Robot Scan Range 16 Terrain Scan Range 24 Terrain Scan Density 210 Armor Coverage 800 Resistance: KI 30 Resistance: EM 25 Core Shielding 30 Evasion (%) 72 Targeting Accuracy 16 Target Analysis 12 Recoil Reduction 6 Kinecelleration 40 Salvage Targeting 3 Offensive Hacking 14 Defensive Hacking 10 Trap Extractor Capacity 8 Item Schematics ----------------- Imp. VTOL Module | -8/Materials | Scanalyzed Adv. Heat Sink | -8/Materials | Scanalyzed Imp. Datajack | -8/Materials | Scanalyzed Grenade Launcher | -8/Materials | Scanalyzed Katana | -8/Materials | Scanalyzed Wheel | -8/Materials | Scanalyzed Plasma Cutter | -8/Materials | Scanalyzed Reactive Plating | -8/Materials | Scanalyzed Imp. Targeting Computer | -8/Materials | Scanalyzed Assault Drone Bay | -4/Zhirov | Free Exp. Heat Sink | -4/Zhirov | Free Exp. Optical Array | -4/Zhirov | Free Imp. Arc Thrower | -4/Zhirov | Free Robot Schematics ------------------ M-13 Machinist | -10/Materials | Hacked G-47 Trooper | -7/Recycling | Hacked Fabricated ------------ Nothing Repaired ---------- Lgt. Cannon | 28% | -10/Materials Lgt. Treads | 26% | -8/Materials Studied --------- Wheel | -7/Factory | Hacked Nova Cannon | -3/Research | Hacked Alien Tech Used ----------------- Integrated Reactor Transdimensional Reconstructor Achievements -------------- I Like You, Cogmind Survival Of The Most Covered Challenges ------------ None Game ------ Seed CannonCountertargetingRail Manual? 0 Play Time 02:54:18 Cumulative 755.6 hours Start 2025.12.13 @ 18:35:41 End 2025.12.13 @ 21:29:11 Sessions 1 Manual Loads 0 Difficulty Rogue Special Mode None Game No. 179 Rogue 41 Adventurer 138 Explorer 0 Win Type - Total 11 Types 7/0/1/2/0/0/0/0/1/0 Lore% 78 Gallery% 77 Achievement% 51 Wizard Run 0 Options --------- Layout 2 ASCII 0 Keyboard 0 Movement Mouse Keybinds 0 Fullscreen 1 Font 24/Smallcaps Map View 50x49 Zoom Use 3% Tactical HUD 1 Map Filters NONE Filters NONE Steam 1 RUN: d29746f1-a089-4d6c-a8c7-e217bca72e1e